bitfinex-derivatives/quotes_ETHF0:USTF0_20240818
["timestamp","ask_amount","ask_price","bid_price","bid_amount"]
[1723951142636,7.60661968,2616.1,2616.0,1.00310775]
[1723951143935,13.18621968,2616.1,2614.3,1.4843439]
[1723951144243,13.18621968,2616.1,2614.7,8.61008836]
[1723951144244,4.97543,2615.5,2614.7,8.61008836]
[1723951144440,0.3546,2615.4,2614.7,8.61008836]
[1723951145036,4.402,2615.5,2614.7,8.61008836]
[1723951145037,4.402,2615.5,2614.8,3.2078]
[1723951145235,0.00573537,2615.3,2614.8,3.21165304]
[1723951145541,0.00573537,2615.3,2614.9,7.85150723]
[1723951147140,4.78701537,2615.3,2614.8,0.00385304]
[1723951147440,0.96301537,2615.3,2614.8,0.00385304]
[1723951147647,0.38953537,2615.3,2614.8,0.00385304]
[1723951147944,0.38953537,2615.3,2615.2,3.78129]
[1723951147945,0.00573537,2615.3,2615.2,3.78129]
[1723951148133,0.00027862,2615.3,2615.2,3.2078]
[1723951148328,0.00027862,2615.3,2615.2,7.0318]
[1723951149632,0.00027862,2615.3,2615.2,3.824]
[1723951150034,0.00027862,2615.3,2614.9,3.5756]
[1723951150538,0.00027862,2615.3,2614.8,0.00385304]
[1723951150942,0.37187862,2615.3,2614.8,0.00385304]
[1723951151260,0.00027862,2615.3,2615.0,3.2078]
[1723951151433,0.00027862,2615.3,2615.0,4.17143]
[1723951151928,0.00027862,2615.3,2615.0,3.5979]
[1723951152642,0.00027862,2615.3,2615.1,3.2078]
[1723951152842,0.00027862,2615.3,2615.0,0.3901]
[1723951153233,0.00027862,2615.3,2615.1,3.2078]
[1723951153445,0.00027862,2615.3,2615.2,0.3739]
[1723951154336,0.00027862,2615.3,2615.2,4.5616]
[1723951154537,0.00312968,2616.1,2615.7,0.57336]
[1723951154837,0.00312968,2616.1,2615.8,3.9309]
[1723951155845,0.00312968,2616.1,2615.8,4.50425]
[1723951156145,0.00312968,2616.1,2615.5,3.78121]
[1723951156537,0.00312968,2616.1,2615.8,3.2078]
[1723951156843,0.00312968,2616.1,2615.6,0.7364]
[1723951157848,0.00312968,2616.1,2615.8,3.2078]
[1723951158349,0.00312968,2616.1,2615.7,0.3667]
[1723951158642,0.00312968,2616.1,2615.8,3.2078]
[1723951158846,0.00312968,2616.1,2615.7,0.3667]
[1723951159348,0.57642968,2616.1,2615.7,0.3667]
[1723951159551,0.94532968,2616.1,2615.7,0.3667]
[1723951160144,0.37202968,2616.1,2615.7,0.3667]
[1723951160350,0.94531968,2616.1,2615.7,0.3667]
[1723951160942,0.37202968,2616.1,2615.7,0.3667]
[1723951161140,0.57331,2616.0,2615.7,0.3667]
[1723951161340,0.94091,2616.0,2615.7,0.3667]
[1723951161648,0.57335,2615.9,2615.5,3.2078]
[1723951162035,0.94092,2616.0,2615.5,3.2078]
[1723951162351,0.3676,2616.0,2615.5,3.2078]
[1723951162539,0.57333,2615.9,2615.5,3.2078]
[1723951162739,4.97533,2615.9,2615.5,3.2078]
[1723951162939,0.57336,2615.8,2615.5,3.2078]
[1723951163142,4.402,2615.9,2615.5,3.2078]
[1723951163143,4.97535,2615.9,2615.5,3.2078]
[1723951163850,0.57336,2615.8,2615.5,3.2078]
[1723951164355,4.97534,2615.9,2615.5,3.2078]
[1723951164547,0.57334,2615.9,2615.5,3.2078]
[1723951164741,4.97534,2615.9,2615.5,3.2078]
[1723951165245,4.402,2615.9,2615.5,3.2078]
[1723951165952,0.3676,2616.0,2615.5,3.2078]
[1723951171153,4.24833968,2616.1,2615.5,3.2078]
[1723951171154,3.30612968,2616.1,2615.5,3.2078]
[1723951171364,3.30612968,2616.1,2615.6,0.3677]
[1723951171955,3.30612968,2616.1,2615.8,3.2078]
[1723951172256,3.30612968,2616.1,2615.9,0.3628]
[1723951172555,0.00312968,2616.1,2615.9,0.3628]
[1723951173051,0.00312968,2616.1,2616.0,0.57331]
[1723951173242,0.00312968,2616.1,2616.0,3.8224]
[1723951173446,0.00312968,2616.1,2616.0,4.39571]
[1723951173646,0.00312968,2616.1,2616.0,17.34114504]
[1723951173954,0.00312968,2616.1,2616.0,12.34114504]
[1723951174245,4.092,2616.5,2616.1,4.39569]
[1723951174550,7.2998,2617.1,2616.2,3.2078]
[1723951174749,7.395,2617.1,2616.5,3.78099]
[1723951175157,7.39966138,2617.1,2616.5,3.78099]
[1723951175458,3.31339675,2617.1,2616.6,8.22911361]
[1723951175758,0.01039675,2617.1,2616.9,0.57311]
[1723951176149,0.01039675,2617.1,2617.0,3.8208]
[1723951176654,0.01039675,2617.1,2617.0,4.39389]
[1723951176858,0.00573537,2617.1,2617.0,9.39389]
[1723951177050,4.0334,2618.0,2617.2,0.57304]
[1723951177242,4.0334,2618.0,2617.3,3.2078]
[1723951177857,0.7304,2618.0,2617.3,3.78082]
[1723951178056,0.00573537,2617.9,2617.3,3.78082]
[1723951178446,0.00573537,2617.9,2617.3,3.2078]
[1723951178650,0.00573537,2617.9,2617.6,3.2078]
[1723951179053,0.00573537,2617.9,2617.3,7.88016095]
[1723951179253,0.00573537,2617.9,2617.3,3.78082]
[1723951180553,0.00573537,2617.9,2617.4,0.3636]
[1723951180744,0.00573537,2617.9,2617.6,3.2078]
[1723951181551,0.00573537,2617.9,2617.4,3.5714]
[1723951181756,4.401,2617.8,2617.0,0.3653]
[1723951182050,0.57298,2617.6,2617.0,0.3636]
[1723951182563,0.57297,2617.6,2617.0,0.3636]
[1723951182954,4.97401,2617.4,2616.6,3.59127856]
[1723951183164,4.97401,2617.4,2616.7,0.3806]
[1723951183353,0.94623,2617.3,2617.0,8.12238769]
[1723951183551,0.3732,2617.3,2617.0,8.12238769]
[1723951183759,0.3732,2617.3,2616.7,0.3806]
[1723951184068,0.3732,2617.3,2616.9,8.01461799]
[1723951184457,0.3732,2617.3,2616.7,0.3806]
[1723951184766,0.3732,2617.3,2617.0,8.01461799]
[1723951185262,0.3732,2617.3,2616.7,0.3806]
[1723951185655,4.97401,2617.4,2617.0,8.24140025]
[1723951185957,4.97401,2617.4,2616.7,0.3806]
[1723951186359,4.97401,2617.4,2617.0,7.90258282]
[1723951186550,0.57301,2617.4,2616.9,7.90258282]
[1723951186753,3.60283537,2617.9,2617.3,3.2078]
[1723951186754,0.00573537,2617.9,2617.3,3.2078]
[1723951186955,0.00573537,2617.9,2617.4,0.3718]
[1723951187858,0.00573537,2617.9,2617.4,3.5796]
[1723951188066,0.00573537,2617.9,2617.4,0.3718]
[1723951188881,0.00573537,2617.9,2617.4,3.5796]
[1723951189162,0.00573537,2617.9,2617.4,0.3718]
[1723951189764,3.65393,2617.8,2617.4,0.3718]
[1723951190463,0.57311,2617.0,2616.5,0.00573537]
[1723951190658,3.65411,2617.0,2616.5,0.00573537]
[1723951190851,6.9026,2617.0,2616.5,0.00573537]
[1723951191055,4.1806,2616.9,2616.5,0.00573537]
[1723951191258,0.57316,2616.7,2616.5,0.00573537]
[1723951191668,4.39476,2616.7,2616.5,0.00573537]
[1723951192055,3.8216,2616.7,2616.5,0.00573537]
[1723951194753,0.359,2616.9,2616.5,0.00573537]
[1723951199270,0.57316,2616.7,2616.5,0.00573537]
[1723951199668,4.39476,2616.7,2616.5,0.00573537]
[1723951201173,3.8216,2616.7,2616.5,0.00573537]
[1723951202471,4.39476,2616.7,2616.5,0.00573537]
[1723951202669,3.8216,2616.7,2616.5,0.00573537]
[1723951202862,0.359,2616.9,2616.5,0.00573537]
[1723951203064,0.359,2616.9,2616.5,0.39373537]
[1723951203266,6.2888,2617.0,2616.5,0.39373537]
[1723951203267,4.092,2617.2,2616.5,0.39373537]
[1723951204271,4.092,2617.2,2616.7,8.09389341]
[1723951204870,4.092,2617.2,2616.8,4.78005958]
[1723951205065,4.092,2617.2,2616.8,0.351]
[1723951205580,4.092,2617.2,2617.0,3.2078]
[1723951205871,3.4644,2617.7,2617.1,0.3866]
[1723951205872,4.092,2617.6,2617.1,0.3866]
[1723951206073,3.4644,2617.7,2617.1,0.3866]
[1723951206396,3.4644,2617.7,2617.1,3.5944]
[1723951208165,4.03734,2617.7,2617.1,3.5944]
[1723951208872,0.57297,2617.6,2617.1,3.5944]
[1723951209073,6.6722,2617.7,2617.1,3.5944]
[1723951209279,0.57304,2617.3,2616.8,0.351]
[1723951209576,6.6722,2617.7,2616.9,7.79642895]
[1723951209577,0.57301,2617.4,2616.9,7.79642895]
[1723951209870,0.57304,2617.3,2616.9,7.79642895]
[1723951210075,3.081,2617.3,2616.9,7.79642895]
[1723951210276,3.081,2617.3,2616.7,0.3854]
[1723951210277,0.57311,2617.0,2616.7,0.3854]
[1723951210479,0.3867,2616.9,2616.7,0.3854]
[1723951210677,0.95983,2616.9,2616.6,0.00397856]
[1723951211176,0.3867,2616.9,2616.6,0.00397856]
[1723951212062,0.7351,2617.2,2616.6,0.00397856]
[1723951212063,0.3696,2617.2,2616.6,0.00397856]
[1723951212268,0.3696,2617.2,2616.6,3.21177856]
[1723951212466,0.3696,2617.2,2616.6,0.00397856]
[1723951213068,0.3696,2617.2,2616.6,0.57715856]
[1723951213376,3.436,2617.3,2616.6,0.57715856]
[1723951213579,3.436,2617.3,2616.7,7.94559214]
[1723951214078,4.00903,2617.3,2616.7,7.94559214]
[1723951214777,3.436,2617.3,2616.7,7.94559214]
[1723951215272,4.00903,2617.3,2616.7,7.94559214]
[1723951215676,0.57306,2617.2,2616.7,7.94559214]
[1723951216482,4.00904,2617.3,2616.7,7.94559214]
[1723951216773,3.436,2617.3,2616.7,7.94559214]
[1723951217477,4.00903,2617.3,2616.7,7.94559214]
[1723951217675,3.436,2617.3,2616.8,3.2078]
[1723951217878,3.436,2617.3,2616.9,0.3581]
[1723951218269,0.57308,2617.1,2616.9,0.3581]
[1723951218795,3.436,2617.3,2616.6,0.00397856]
[1723951219074,0.57311,2617.0,2616.6,0.00397856]
[1723951219265,0.57311,2617.0,2616.7,8.1071063]
[1723951219874,2.88511,2617.0,2616.7,8.1071063]
[1723951220876,2.312,2617.0,2616.7,8.1071063]
[1723951221775,3.24003,2617.3,2616.7,15.1365063]
[1723951221976,3.24003,2617.3,2616.7,11.3149063]
[1723951222680,2.667,2617.3,2616.7,11.8880563]
[1723951222881,2.667,2617.3,2616.7,11.3149063]
[1723951223270,0.355,2617.3,2616.7,11.3149063]
[1723951224971,0.3689,2617.6,2616.8,4.13479275]
[1723951225175,0.3689,2617.6,2616.9,3.2078]
[1723951225374,0.94187,2617.6,2617.0,0.3654]
[1723951225780,7.5571,2617.8,2617.0,0.3654]
[1723951225981,8.50553,2617.8,2617.0,0.3654]
[1723951226298,8.50552,2617.8,2617.0,0.93848]
[1723951226582,8.50552,2617.8,2617.0,0.3654]
[1723951228086,0.57299,2617.5,2617.0,0.3654]
[1723951228285,0.57299,2617.5,2616.9,0.3687]
[1723951228286,7.9326,2617.8,2616.8,3.2078]
[1723951228476,7.9326,2617.8,2616.7,0.3809]
[1723951228477,0.3668,2617.4,2616.7,0.3809]
[1723951228674,0.57307,2617.2,2616.7,0.3809]
[1723951228874,0.388,2617.1,2616.7,0.3809]
[1723951230184,0.3716,2617.3,2616.7,0.3809]
[1723951230476,0.3716,2617.3,2616.7,3.5887]
[1723951231582,0.94463,2617.3,2616.7,0.3809]
[1723951232180,0.94463,2617.3,2616.7,3.5887]
[1723951232689,0.94463,2617.3,2616.7,0.3809]
[1723951232885,0.3716,2617.3,2616.8,8.11304069]
[1723951233091,0.3716,2617.3,2617.0,3.2078]
[1723951233284,0.388,2617.6,2617.0,3.2078]
[1723951233489,0.7653,2617.6,2617.0,3.2078]
[1723951233980,0.7653,2617.6,2617.0,3.9711]
[1723951235391,0.3773,2617.6,2617.0,3.9711]
[1723951238180,0.95027,2617.6,2617.0,0.7633]
[1723951238487,0.57298,2617.5,2617.0,0.7633]
[1723951239087,0.57298,2617.5,2617.0,3.9711]
[1723951239590,0.00411769,2618.0,2617.4,3.2078]
[1723951239794,0.00411769,2618.0,2617.5,0.7597]
[1723951240490,0.00411769,2618.0,2617.5,1.1343]
[1723951243405,0.00411769,2618.0,2617.5,0.3689]
[1723951243598,0.57863537,2617.9,2617.5,0.3689]
[1723951243789,0.3736,2617.8,2617.5,0.3689]
[1723951243988,4.1936,2617.8,2617.4,3.2078]
[1723951244187,0.57298,2617.6,2617.4,3.2078]
[1723951244689,0.94305,2617.7,2617.4,3.2078]
[1723951244890,0.3701,2617.7,2617.4,3.2078]
[1723951245298,0.7472,2617.8,2617.4,3.2078]
[1723951246695,0.3736,2617.8,2617.4,3.2078]
[1723951247483,0.94652,2617.8,2617.4,3.2078]
[1723951247683,0.3736,2617.8,2617.4,3.2078]
[1723951248097,2.311,2617.7,2617.4,3.2078]
[1723951248401,0.57298,2617.5,2617.4,3.2078]
[1723951248786,4.39378,2617.5,2617.1,0.3734]
[1723951248996,4.39378,2617.5,2616.9,1.34389627]
[1723951248997,0.57302,2617.4,2616.7,3.2078]
[1723951249199,0.57303,2617.3,2616.8,0.3789]
[1723951249501,0.57306,2617.2,2616.8,0.3789]
[1723951249987,0.3773,2617.3,2616.8,0.3789]
[1723951250815,0.95034,2617.3,2616.8,0.3789]
[1723951251408,0.57305,2617.2,2616.8,0.3789]
[1723951251596,0.94475,2617.2,2616.8,0.3789]
[1723951251803,0.57307,2617.1,2616.8,0.3789]
[1723951252196,0.57307,2617.1,2616.7,3.2078]
[1723951255004,0.3717,2617.2,2616.7,3.2078]
[1723951255204,0.57311,2617.0,2616.7,3.2078]
[1723951255791,0.57312,2616.9,2616.7,3.2078]
[1723951256199,0.3852,2616.8,2616.7,3.2078]
[1723951256901,4.77994,2616.8,2616.7,3.2078]
[1723951257790,0.57316,2616.7,2616.6,0.00397856]
[1723951258706,0.57326,2616.3,2615.9,3.2078]
[1723951258901,0.57326,2616.3,2615.8,0.98629627]
[1723951258902,0.95417,2616.2,2615.7,0.3654]
[1723951259702,0.57329,2616.1,2615.7,0.37019265]
[1723951259905,0.57331,2616.0,2615.7,0.37019265]
[1723951260101,0.57331,2616.0,2615.7,0.37592802]
[1723951260302,0.96370753,2616.1,2615.7,0.37592802]
[1723951260806,0.00440753,2616.1,2615.7,0.37592802]
[1723951261804,0.00440753,2616.1,2615.8,3.2078]
[1723951262022,0.00440753,2616.1,2615.9,0.39]
[1723951262609,0.00440753,2616.1,2616.0,0.3822]
[1723951263609,0.00440753,2616.1,2616.0,4.2046]
[1723951267716,0.00440753,2616.1,2616.0,3.8224]
[1723951267915,0.00440753,2616.1,2615.9,0.39]
[1723951268319,0.00440753,2616.1,2615.7,0.37592802]
[1723951268510,0.57769753,2616.1,2615.7,0.37592802]
[1723951268711,0.96489753,2616.1,2615.7,0.37592802]
[1723951269211,0.39160753,2616.1,2615.7,0.37592802]
[1723951270510,0.96490753,2616.1,2615.7,0.37592802]
[1723951271424,0.39160753,2616.1,2615.7,0.37592802]
[1723951271714,0.39160753,2616.1,2615.7,3.58372802]
[1723951271919,0.00440753,2616.1,2615.7,3.58372802]
[1723951273416,0.00440753,2616.1,2615.7,0.37592802]
[1723951273617,0.00440753,2616.1,2615.7,3.58372802]
[1723951274908,0.00440753,2616.1,2615.8,8.03398003]
[1723951275103,0.00440753,2616.1,2616.0,3.2078]
[1723951275517,0.00440753,2616.1,2616.0,12.60351]
[1723951275710,0.00573537,2616.2,2616.1,0.57329]
[1723951275906,4.66514,2616.8,2616.1,4.39568]
[1723951276109,4.66514,2616.8,2616.1,12.10536477]
[1723951276110,0.57316,2616.7,2616.1,12.10536477]
[1723951276320,4.092,2616.8,2616.2,0.3695]
[1723951276321,0.57318,2616.6,2616.2,0.3695]
[1723951276712,0.57802003,2616.6,2616.2,0.3695]
[1723951277009,0.57322,2616.5,2616.2,0.3695]
[1723951277213,0.57803003,2616.6,2616.2,0.3695]
[1723951277616,0.00484003,2616.6,2616.2,0.3695]
[1723951278919,0.00484003,2616.6,2616.3,11.29744476]
[1723951279119,0.00484003,2616.6,2616.5,0.5732]
[1723951279319,0.00484003,2616.6,2616.5,4.3948]
[1723951279526,0.00484003,2616.6,2616.5,22.0447344]
[1723951279828,0.00573537,2616.7,2616.6,0.57318]
[1723951280015,0.00573537,2616.7,2616.6,12.60258]
[1723951280213,0.95731,2617.4,2616.7,0.57315]
[1723951280413,0.95731,2617.4,2616.9,3.2078]
[1723951280617,0.9603375,2617.4,2617.0,0.3969]
[1723951281222,0.57303,2617.3,2617.0,0.3969]
[1723951281426,0.9603375,2617.4,2617.0,0.3969]
[1723951283222,0.57303,2617.3,2616.9,3.2078]
[1723951283719,0.3873275,2617.4,2616.9,3.2078]
[1723951283720,0.9603375,2617.4,2616.9,3.2078]
[1723951283920,0.3873275,2617.4,2616.9,3.2078]
[1723951284530,0.3873275,2617.4,2616.9,3.78091]
[1723951284733,0.3873275,2617.4,2617.0,0.95129]
[1723951284916,0.0030275,2617.4,2617.0,4.64058794]
[1723951286040,0.57304,2617.3,2616.9,3.2078]
[1723951286338,0.3875,2617.2,2616.9,3.2078]
[1723951286534,1.33075,2617.2,2616.9,3.2078]
[1723951286858,0.57307,2617.1,2616.9,3.2078]
[1723951287132,1.70436,2617.2,2616.9,3.2078]
[1723951290434,1.1313,2617.2,2616.9,3.2078]
[1723951290639,0.3875,2617.2,2616.9,3.2078]
[1723951292933,0.96055,2617.2,2616.9,3.2078]
[1723951293930,0.3875,2617.2,2616.9,3.2078]
[1723951294131,0.0030275,2617.4,2617.0,4.78139]
[1723951294441,0.0030275,2617.4,2617.2,3.2078]
[1723951294625,0.0030275,2617.4,2617.3,0.94553]
[1723951294826,0.0030275,2617.4,2617.3,9.20161743]
[1723951295639,0.0030275,2617.4,2617.3,8.62858743]
[1723951295940,0.00573537,2617.5,2617.4,0.573]
[1723951296136,0.00573537,2617.5,2617.4,3.8208]
[1723951296335,0.00573537,2617.5,2617.4,11.62082714]
[1723951297044,0.010059,2617.5,2617.4,11.62082714]
[1723951297533,0.010059,2617.5,2617.3,0.3725]
[1723951299432,0.010059,2617.5,2617.3,4.76633]
[1723951299635,0.010059,2617.5,2617.3,4.1933]
[1723951300735,0.010059,2617.5,2617.3,0.3725]
[1723951300946,0.010059,2617.5,2617.4,8.09264513]
[1723951301144,0.010059,2617.5,2617.3,4.1933]
[1723951301331,0.010059,2617.5,2617.3,0.3725]
[1723951301531,0.010059,2617.5,2617.3,4.1933]
[1723951301727,0.010059,2617.5,2617.3,0.3725]
[1723951301927,0.010059,2617.5,2617.0,0.96632537]
[1723951302463,0.398759,2617.5,2617.1,7.93382666]
[1723951302940,0.372,2617.4,2617.1,7.93382666]
[1723951303336,0.372,2617.4,2617.2,3.2078]
[1723951303532,0.94501,2617.4,2617.1,7.93382666]
[1723951303732,0.57304,2617.3,2617.0,0.00573537]
[1723951304135,0.57304,2617.3,2617.1,8.22012536]
[1723951304738,0.57305,2617.2,2617.1,8.22012536]
[1723951304944,0.57307,2617.1,2617.0,0.00573537]
[1723951305938,2.684,2617.4,2617.0,0.00573537]
[1723951305939,0.372,2617.4,2617.0,0.00573537]
[1723951306133,0.57305,2617.3,2617.0,0.00573537]
[1723951306335,0.372,2617.4,2617.0,0.00573537]
[1723951307040,0.94502,2617.4,2617.0,0.00573537]
[1723951308146,0.372,2617.4,2617.0,0.00573537]
[1723951308532,0.372,2617.4,2617.0,3.21353537]
[1723951308850,0.372,2617.4,2617.0,0.00573537]
[1723951309642,0.372,2617.4,2617.0,3.21353537]
[1723951310144,0.372,2617.4,2617.0,0.00573537]
[1723951310646,0.372,2617.3,2617.0,0.00573537]
[1723951311354,0.57307,2617.1,2617.0,0.00573537]
[1723951311845,4.76967,2617.1,2617.0,0.00573537]
[1723951312038,0.57315,2616.8,2616.4,3.2078]
[1723951312237,0.758,2616.7,2616.4,3.2078]
[1723951312438,0.3758,2616.6,2616.5,7.86615168]
[1723951312643,0.3758,2616.6,2616.4,3.2078]
[1723951313948,0.3758,2616.6,2616.2,0.00573537]
[1723951313949,0.57325,2616.4,2616.2,0.00573537]
[1723951314750,0.758,2616.7,2616.2,0.00573537]
[1723951314947,1.33118,2616.7,2616.2,0.00573537]
[1723951315142,1.33118,2616.7,2616.2,3.21353537]
[1723951315545,0.386,2616.7,2616.2,3.78679537]
[1723951315944,0.386,2616.7,2616.2,3.21353537]
[1723951317350,0.386,2616.7,2616.2,0.00573537]
[1723951318656,0.386,2616.7,2616.2,3.21353537]
[1723951319653,0.57318,2616.6,2616.2,3.21353537]
[1723951320059,0.57323,2616.4,2616.2,3.21353537]
[1723951320249,0.4042,2616.3,2616.2,3.21353537]
[1723951320460,0.5733,2616.1,2615.7,0.00479265]
[1723951320763,0.391,2616.0,2615.7,0.00479265]
[1723951321060,0.7869,2616.0,2615.7,0.00479265]
[1723951321252,1.36021,2616.0,2615.7,0.00479265]
[1723951321458,0.7869,2616.0,2615.7,0.00479265]
[1723951321759,0.391,2616.0,2615.7,0.00479265]
[1723951322149,0.00573537,2616.1,2615.8,3.2078]
[1723951322350,0.00573537,2616.1,2615.8,4.16765]
[1723951322558,0.00573537,2616.1,2615.9,0.4034]
[1723951324964,0.00573537,2616.1,2615.7,0.00479265]
[1723951325180,0.57334,2615.9,2615.7,0.00479265]
[1723951325463,0.3887,2615.8,2615.7,0.00479265]
[1723951326161,0.57903537,2616.1,2615.7,0.00479265]
[1723951326466,0.00573537,2616.1,2615.7,0.00479265]
[1723951327067,0.00573537,2616.1,2615.7,0.37599265]
[1723951327363,0.00573537,2616.1,2615.8,3.2078]
[1723951328960,0.00573537,2616.1,2615.7,0.77229265]
[1723951329471,0.00573537,2616.1,2615.8,11.3388072]
[1723951329870,0.00573537,2616.1,2615.8,8.1310072]
[1723951331575,0.00573537,2616.1,2615.8,11.9121472]
[1723951331872,0.00573537,2616.1,2615.8,11.3388072]
[1723951333873,0.00573537,2616.1,2615.8,8.1310072]
[1723951334078,0.00573537,2616.1,2615.8,11.3388072]
[1723951334368,0.00573537,2616.1,2615.8,8.1310072]
[1723951335176,0.57903537,2616.1,2615.8,8.1310072]
[1723951335876,0.57332,2616.0,2615.8,8.1310072]
[1723951336062,1.34682,2616.0,2615.8,8.1310072]
[1723951336975,0.3908,2616.0,2615.8,8.1310072]
[1723951337179,0.00573537,2616.1,2615.8,11.3388072]
[1723951341674,0.00573537,2616.1,2615.8,11.7308072]
[1723951342273,0.00573537,2616.1,2615.8,12.3041472]
[1723951342570,0.00573537,2616.1,2615.9,0.3783]
[1723951345873,0.00573537,2616.1,2615.8,11.3388072]
[1723951347277,0.57902537,2616.1,2615.8,11.3388072]
[1723951347666,0.00573537,2616.1,2615.8,3.2078]
[1723951347874,0.00573537,2616.1,2615.7,0.00479265]
[1723951347875,0.57333,2615.9,2615.7,0.00479265]
[1723951348174,0.3889,2615.8,2615.7,0.00479265]
[1723951348372,0.3889,2615.8,2615.6,0.00573537]
[1723951348373,7.4199,2615.8,2615.6,0.00573537]
[1723951348575,0.57344,2615.4,2615.1,1.11]
[1723951348888,2.312,2615.5,2614.7,3.2078]
[1723951349074,0.7429,2615.3,2614.7,3.2078]
[1723951349381,0.57353,2615.1,2614.7,3.21272459]
[1723951349583,0.57357,2614.8,2614.7,3.21272459]
[1723951349784,0.57357,2614.8,2614.7,3.21845996]
[1723951350091,4.39837,2614.8,2614.7,3.21845996]
[1723951350275,2.6775,2615.2,2614.7,3.21845996]
[1723951350589,0.57351,2615.1,2614.7,3.21845996]
[1723951351878,0.57353,2615.0,2614.7,3.21845996]
[1723951352180,0.57357,2614.8,2614.7,3.21845996]
[1723951352585,3.8248,2614.8,2614.7,3.21845996]
[1723951352884,3.251,2615.2,2614.7,3.21845996]
[1723951353269,3.251,2615.2,2614.8,0.3882]
[1723951353576,0.3655,2615.2,2614.8,0.3882]
[1723951353775,0.3655,2615.2,2614.8,0.7516]
[1723951354476,0.3655,2615.2,2614.8,1.1404]
[1723951355182,0.00284895,2615.3,2615.0,3.2078]
[1723951355489,0.00284895,2615.3,2614.9,3.2078]
[1723951356577,0.00284895,2615.3,2614.9,3.78135]
[1723951356778,0.00284895,2615.3,2614.9,3.2078]
[1723951357191,0.00284895,2615.3,2615.0,12.32801471]
[1723951357585,0.00284895,2615.3,2615.0,7.90970341]
[1723951357881,0.00284895,2615.3,2615.2,3.2078]
[1723951358186,0.00284895,2615.3,2615.1,3.2078]
[1723951358587,0.00284895,2615.3,2615.1,15.21778672]
[1723951358787,0.00284895,2615.3,2615.1,7.0318]
[1723951359787,0.00284895,2615.3,2615.1,7.60531]
[1723951360486,0.00284895,2615.3,2615.1,7.0318]
[1723951362487,0.00284895,2615.3,2615.1,3.2078]
[1723951363283,0.00284895,2615.3,2615.1,7.0318]
[1723951363493,0.00284895,2615.3,2615.2,11.81115726]
[1723951363682,0.00284895,2615.3,2615.2,16.09105978]
[1723951363984,0.00284895,2615.3,2615.2,11.81115726]
[1723951365288,0.00284895,2615.3,2615.2,7.98715726]
[1723951367087,0.00284895,2615.3,2615.2,11.19495726]
[1723951367292,0.00284895,2615.3,2615.2,3.2078]
[1723951367590,0.00284895,2615.3,2615.2,11.4400606]
[1723951367780,0.00284895,2615.3,2614.8,4.3482]
[1723951367981,0.00284895,2615.3,2614.8,4.92177]
[1723951368191,0.00284895,2615.3,2615.1,3.2078]
[1723951368389,0.00284895,2615.3,2614.9,8.2322606]
[1723951368691,0.00284895,2615.3,2614.8,4.92177]
[1723951368995,0.00284895,2615.3,2615.0,7.93972048]
[1723951369197,0.00284895,2615.3,2614.9,7.93972048]
[1723951369395,0.00284895,2615.3,2615.1,3.2078]
[1723951369686,0.00284895,2615.3,2615.0,8.13344825]
[1723951369890,0.00284895,2615.3,2614.9,8.13344825]
[1723951370090,0.00284895,2615.3,2614.8,4.3482]
[1723951370091,0.57349,2615.2,2614.8,3.9594]
[1723951370494,0.00284895,2615.3,2614.8,3.9594]
[1723951370681,0.00284895,2615.3,2614.8,4.53296]
[1723951370996,0.00284895,2615.3,2614.8,3.9594]
[1723951371294,0.00284895,2615.3,2614.8,4.53297]
[1723951371887,0.00284895,2615.3,2614.8,3.9594]
[1723951373385,0.00284895,2615.3,2615.1,3.2078]
[1723951373585,0.00284895,2615.3,2615.2,0.95319]
[1723951373794,0.00284895,2615.3,2615.2,8.9098417]
[1723951375384,0.00284895,2615.3,2615.2,8.3363517]
[1723951376591,0.57336,2615.8,2615.2,8.3363517]
[1723951376592,4.092,2615.9,2615.4,0.57344]
[1723951376795,0.94742,2616.0,2615.5,0.3727]
[1723951377099,0.57334,2615.9,2615.5,8.17618263]
[1723951377594,0.00294516,2615.9,2615.5,8.17618263]
[1723951379088,0.00294516,2615.9,2615.6,3.2078]
[1723951379299,0.00294516,2615.9,2615.7,0.3624]
[1723951379598,0.00294516,2615.9,2615.7,0.7414]
[1723951379792,0.00294516,2615.9,2615.8,0.3651]
[1723951379993,0.00294516,2615.9,2615.8,8.41192584]
[1723951380298,0.00573537,2616.1,2616.0,0.57331]
[1723951380491,2.312,2617.0,2616.0,3.2078]
[1723951380685,0.57316,2616.7,2616.0,11.78511751]
[1723951380891,0.57318,2616.6,2616.0,11.78511751]
[1723951381092,0.57787545,2616.6,2616.0,11.78511751]
[1723951381494,0.00469545,2616.6,2616.0,11.78511751]
[1723951381697,0.01043082,2616.6,2616.0,11.79085288]
[1723951382199,0.01043082,2616.6,2616.1,0.57329]
[1723951382390,0.01043082,2616.6,2616.3,3.2078]
[1723951382589,0.01043082,2616.6,2616.4,0.3708]
[1723951383692,0.01043082,2616.6,2616.1,0.382]
[1723951383998,0.01043082,2616.6,2616.5,3.2078]
[1723951388915,0.01043082,2616.6,2616.4,3.2078]
[1723951390199,0.01043082,2616.6,2616.3,0.57323]
[1723951390406,0.01043082,2616.6,2616.4,3.2078]
[1723951390699,0.01043082,2616.6,2616.5,0.3908]
[1723951390892,0.01043082,2616.6,2616.5,4.7856]
[1723951391091,0.01043082,2616.6,2616.5,8.82278365]
[1723951391295,0.01043082,2616.6,2616.5,9.39598365]
[1723951392303,0.01043082,2616.6,2616.5,14.39598365]
[1723951394003,0.3649,2617.3,2616.8,0.57312]
[1723951394313,0.3649,2617.3,2616.9,0.3589]
[1723951394500,0.93793,2617.3,2616.9,0.3589]
[1723951395002,0.57305,2617.2,2616.9,0.36347561]
[1723951395924,0.57309,2617.1,2616.9,0.00457561]
[1723951396103,0.57309,2617.0,2616.9,0.00457561]
[1723951396405,0.3571,2617.0,2616.9,0.00457561]
[1723951398210,0.93019,2617.0,2616.9,0.00457561]
[1723951398410,0.3571,2617.0,2616.9,0.00457561]
[1723951400617,0.94183537,2617.3,2616.9,0.00457561]
[1723951400819,0.57305,2617.2,2616.9,0.00457561]